bitfinex/quotes_SOLUSD_20251125
["timestamp","ask_amount","ask_price","bid_price","bid_amount"]
[1764063560021,16.308864,135.53,135.52,0.71]
[1764063560218,19.32941198,135.53,135.49,0.71]
[1764063560409,2.34054798,135.51,135.49,3.97]
[1764063560613,3.66555066,135.51,135.49,3.97]
[1764063561015,3.66555066,135.51,135.5,0.71]
[1764063562223,20.99707211,135.52,135.5,8.08984907]
[1764063562413,4.68820811,135.52,135.5,8.08984907]
[1764063562600,16.308864,135.52,135.51,0.71]
[1764063563501,3.66555066,135.54,135.52,7.37898465]
[1764063563822,0.73833431,135.53,135.51,0.71]
[1764063564206,0.73833431,135.53,135.51,8.08933344]
[1764063564605,0.73833431,135.53,135.52,0.71]
[1764063564904,0.73833431,135.53,135.52,3.97]
[1764063565622,0.73833431,135.53,135.52,3.26]
[1764063566742,9.09426806,135.52,135.48,0.2]
[1764063567028,20.40089937,135.49,135.48,0.2]
[1764063567419,21.12089937,135.49,135.48,0.2]
[1764063567625,28.50151786,135.49,135.48,0.2]
[1764063568125,37.31146278,135.49,135.48,0.2]
[1764063569212,40.26993325,135.49,135.48,0.2]
[1764063569413,31.45998833,135.49,135.48,0.2]
[1764063569609,23.21720827,135.49,135.48,0.2]
[1764063569812,19.26733447,135.49,135.48,0.91]
[1764063570012,16.308864,135.49,135.48,0.2]
[1764063570213,19.97441466,135.49,135.48,0.2]
[1764063572210,20.71274897,135.49,135.48,0.2]
[1764063572822,17.04719831,135.49,135.48,0.91]
[1764063574375,0.73833431,135.51,135.48,8.29116327]
[1764063574637,0.73833431,135.51,135.49,0.71]
[1764063575137,121.74719831,135.52,135.49,8.09060986]
[1764063575436,4.40388497,135.52,135.49,8.09060986]
[1764063575651,4.40388497,135.52,135.5,0.71]
[1764063576014,4.40388497,135.52,135.5,3.97]
[1764063576832,23.82953516,135.53,135.5,3.97]
[1764063577032,11.18670573,135.52,135.5,3.97]
[1764063577238,3.66555066,135.51,135.5,3.26]
[1764063577732,7.52115507,135.52,135.5,3.26]
[1764063577912,3.66555066,135.51,135.5,3.26]
[1764063580231,16.308864,135.49,135.48,0.2]
[1764063580540,19.97441466,135.49,135.48,0.2]
[1764063580743,20.2587378,135.49,135.48,0.2]
[1764063581044,20.9787378,135.49,135.48,0.2]
[1764063581226,20.2587378,135.49,135.48,0.2]
[1764063582443,27.63935629,135.49,135.48,0.2]
[1764063584049,16.59318714,135.49,135.48,0.2]
[1764063584240,20.2587378,135.49,135.48,0.2]
[1764063585126,16.59318714,135.49,135.48,0.91]
[1764063585326,20.2587378,135.49,135.48,0.91]
[1764063585950,20.2587378,135.49,135.48,0.2]
[1764063587937,27.63935629,135.49,135.48,0.2]
[1764063590058,27.40092945,135.51,135.48,8.29116327]
[1764063590059,8.95210649,135.51,135.48,8.29116327]
[1764063590354,8.09764336,135.55,135.49,3.26]
[1764063590530,3.66555066,135.52,135.5,0.71]
[1764063590731,3.66555066,135.51,135.5,0.71]
[1764063591439,3.66555066,135.51,135.49,3.26]
[1764063591638,3.66555066,135.51,135.49,3.97]
[1764063592159,0.14216157,135.52,135.5,0.71]
[1764063592360,3.66555066,135.51,135.5,0.71]
[1764063592541,3.66555066,135.51,135.49,10.64050957]
[1764063592739,3.66555066,135.51,135.49,11.35050957]
[1764063594233,3.66555066,135.51,135.49,3.97]
[1764063594463,3.66555066,135.5,135.48,3.46]
[1764063594965,3.66555066,135.5,135.48,4.17]
[1764063595769,8.05962645,135.51,135.48,4.17]
[1764063595770,3.66555066,135.51,135.49,0.71]
[1764063597849,3.66555066,135.51,135.49,8.0905372]
[1764063598043,3.80771223,135.52,135.49,8.0905372]
[1764063598244,3.80771223,135.52,135.5,0.68]
[1764063598443,3.66555066,135.51,135.49,8.0605372]
[1764063598645,3.66555066,135.51,135.49,0.68]
[1764063601048,3.66555066,135.51,135.49,8.06061286]
[1764063601541,3.66555066,135.51,135.49,0.68]
[1764063602477,3.66555066,135.51,135.49,8.06054747]
[1764063602846,3.66555066,135.51,135.49,0.68]
[1764063604065,8.21119845,135.52,135.49,0.68]
[1764063604251,3.66555066,135.51,135.49,0.68]
[1764063604440,3.9498738,135.5,135.48,0.2]
[1764063604641,3.9498738,135.5,135.45,0.2]
[1764063604642,29.21084429,135.49,135.45,0.2]
[1764063604861,29.21084429,135.46,135.45,0.2]
[1764063605469,29.90084429,135.46,135.45,0.2]
[1764063605859,37.28309735,135.46,135.45,0.2]
[1764063607071,40.94864801,135.46,135.45,0.2]
[1764063607377,9.23642963,135.45,135.43,0.2]
[1764063607568,4.09203537,135.44,135.43,0.2]
[1764063607770,4.78203537,135.44,135.43,0.2]
[1764063608157,12.16537854,135.44,135.43,0.2]
[1764063610880,20.97532346,135.44,135.43,0.2]
[1764063611065,9.23642963,135.43,135.42,0.2]
[1764063611388,13.59198029,135.43,135.42,0.2]
[1764063612670,20.97586864,135.43,135.42,0.2]
[1764063613584,25.54529363,135.41,135.4,0.2]
[1764063613758,29.21084429,135.41,135.4,0.2]
[1764063613961,29.90084429,135.41,135.4,0.2]
[1764063614857,37.28582324,135.41,135.4,0.2]
[1764063619796,33.62027258,135.41,135.4,0.2]
[1764063619968,37.28582324,135.41,135.4,0.2]
[1764063620663,35.97097614,135.41,135.4,0.2]
[1764063621090,16.19492387,135.41,135.4,0.88]
[1764063621265,18.54562743,135.41,135.4,0.88]
[1764063621462,35.28097614,135.41,135.4,0.88]
[1764063621773,18.97211214,135.41,135.4,0.2]
[1764063621974,35.28097614,135.41,135.4,0.2]
[1764063624079,36.00097614,135.41,135.4,0.2]
[1764063627895,36.00097614,135.41,135.38,0.2]
[1764063627896,8.80994492,135.39,135.38,0.2]
[1764063628078,27.46951248,135.39,135.38,0.2]
[1764063629895,34.85558235,135.39,135.38,0.2]
[1764063630488,35.57558235,135.39,135.38,0.2]
[1764063630880,34.85558235,135.39,135.38,0.2]
[1764063632109,36.00206706,135.39,135.38,0.2]
[1764063632301,35.28206706,135.39,135.38,0.2]
[1764063633316,0.72,135.47,135.38,12.96802257]
[1764063633521,2.35070356,135.49,135.44,2.35070356]
[1764063633819,18.44931458,135.51,135.46,2.35070356]
[1764063633820,9.73031795,135.51,135.46,2.35070356]
[1764063633989,2.35070356,135.49,135.44,18.65956756]
[1764063634195,2.35070356,135.47,135.42,9.73513717]
[1764063634490,3.07070356,135.47,135.42,9.73513717]
[1764063634698,0.72,135.47,135.43,2.35070356]
[1764063634898,2.35070356,135.48,135.43,2.35070356]
[1764063635084,0.42648471,135.47,135.43,2.35070356]
[1764063635285,2.35070356,135.47,135.43,2.35070356]
[1764063635485,9.73242631,135.47,135.43,2.35070356]
[1764063635712,2.35070356,135.47,135.43,2.35070356]
[1764063636208,2.35070356,135.47,135.43,9.73445589]
[1764063636512,10.4526199,135.47,135.42,2.35070356]
[1764063636814,10.4526199,135.47,135.43,2.35070356]
[1764063637287,10.4526199,135.47,135.42,2.35070356]
[1764063637486,2.35070356,135.47,135.43,7.38388835]
[1764063637705,0.72,135.47,135.43,7.38388835]
[1764063637910,0.28432314,135.49,135.46,2.35070356]
[1764063638111,3.07070356,135.51,135.47,2.35070356]
[1764063638499,16.308864,135.5,135.47,2.35070356]
[1764063638695,3.07070356,135.51,135.46,5.61070356]
[1764063639203,17.028864,135.5,135.46,12.99282477]
[1764063639415,16.308864,135.5,135.46,12.99282477]
[1764063639801,17.028864,135.5,135.46,12.99282477]
[1764063640318,19.37956756,135.5,135.46,12.99282477]
[1764063640488,2.35070356,135.51,135.46,12.99282477]
[1764063640818,19.37956756,135.51,135.46,12.99282477]
[1764063641115,2.35070356,135.5,135.46,12.99282477]
[1764063641300,2.35070356,135.5,135.46,10.64212121]
[1764063641501,2.35070356,135.5,135.46,7.38212121]
[1764063641696,2.35070356,135.5,135.46,10.64212121]
[1764063641892,2.35070356,135.49,135.45,9.73347195]
[1764063642098,2.35070356,135.49,135.45,10.64276839]
[1764063642099,3.07070356,135.49,135.45,10.64276839]
[1764063642299,2.35070356,135.49,135.45,12.99347195]
[1764063643617,18.65956756,135.46,135.41,3.26]
[1764063643818,18.65956756,135.46,135.41,5.61070356]
[1764063644203,18.65956756,135.46,135.42,2.35070356]
[1764063644613,18.65956756,135.46,135.42,9.73489717]
[1764063645798,16.308864,135.46,135.42,9.73489717]
[1764063646318,16.308864,135.45,135.42,9.73489717]
[1764063646620,2.35070356,135.47,135.42,9.73489717]
[1764063647222,16.308864,135.46,135.42,9.73489717]
[1764063647615,18.65956756,135.46,135.42,9.73489717]
[1764063647793,0.14216157,135.48,135.42,28.1959812]
[1764063648000,2.49286513,135.48,135.43,52.35070356]
[1764063648394,2.35070356,135.47,135.43,52.35070356]
[1764063648621,2.35070356,135.47,135.43,2.35070356]
[1764063648922,2.35070356,135.47,135.44,7.38334317]
[1764063649111,0.86216157,135.48,135.45,3.26]
[1764063649112,2.77718827,135.48,135.45,3.26]
[1764063649307,2.35070356,135.48,135.45,3.26]
[1764063649506,2.35070356,135.48,135.44,7.38334317]
[1764063649727,2.35070356,135.48,135.45,3.26]
[1764063650317,2.35070356,135.47,135.45,3.26]
[1764063651234,2.35070356,135.48,135.45,10.64270017]
[1764063651639,24.40959317,135.49,135.45,10.64270017]
[1764063651935,16.308864,135.49,135.45,10.64270017]
[1764063652098,16.308864,135.51,135.46,2.35070356]
[1764063652507,18.65956756,135.51,135.46,2.35070356]
[1764063653311,18.65956756,135.51,135.47,7.38170812]
[1764063653519,19.37956756,135.52,135.48,3.26]
[1764063654115,16.308864,135.52,135.48,5.61070356]
[1764063654420,107.05070356,135.53,135.48,5.61070356]
[1764063654810,107.05070356,135.53,135.48,3.26]
[1764063655014,107.75070356,135.53,135.48,5.61070356]
[1764063655396,3.05070356,135.53,135.49,7.38061849]
[1764063655601,3.05070356,135.53,135.49,25.83216472]
[1764063655602,2.35070356,135.53,135.49,25.83216472]
[1764063657531,2.35070356,135.55,135.5,2.35070356]
[1764063657828,2.35070356,135.55,135.51,3.26]
[1764063658203,2.35070356,135.54,135.51,3.26]
[1764063658403,3.04070356,135.54,135.51,3.26]
[1764063659325,3.04070356,135.54,135.51,10.63916357]
[1764063659509,2.35070356,135.54,135.51,10.63916357]
[1764063660120,2.35070356,135.54,135.51,3.26]
[1764063660307,3.04070356,135.53,135.51,3.26]
[1764063660641,2.35070356,135.53,135.51,3.26]
[1764063661139,2.35070356,135.54,135.51,3.26]
[1764063661429,2.35070356,135.55,135.51,10.63941834]
[1764063661637,2.35070356,135.55,135.52,3.26]
[1764063661638,0.69,135.54,135.52,3.26]
[1764063661937,3.04070356,135.55,135.52,3.26]
[1764063662938,3.04070356,135.57,135.52,5.61070356]
[1764063663111,3.04070356,135.57,135.53,2.35070356]
[1764063663642,3.04070356,135.57,135.54,7.37789582]
[1764063663808,3.04070356,135.57,135.55,3.26]
[1764063664134,123.35956756,135.58,135.55,3.26]
[1764063664335,124.04956756,135.58,135.55,3.26]
[1764063664906,3.04070356,135.57,135.55,3.26]
[1764063665928,104.7,135.58,135.55,10.63694421]
[1764063666131,107.05070356,135.58,135.55,10.63694421]
[1764063666329,107.74070356,135.58,135.55,10.63694421]
[1764063666529,107.05070356,135.58,135.55,10.63694421]
[1764063666720,107.74070356,135.58,135.55,10.63694421]
[1764063667217,0.1,135.59,135.55,12.98764777]
[1764063667415,0.1,135.59,135.55,31.43102659]
[1764063667614,3.14070356,135.59,135.55,31.43102659]
[1764063668912,3.14070356,135.59,135.51,103.20442132]
[1764063668913,18.65956756,135.56,135.51,7.37952918]
[1764063669108,2.35070356,135.53,135.52,3.26]
[1764063669324,0.69,135.58,135.52,5.61070356]
[1764063669551,2.35070356,135.57,135.54,7.37789582]
[1764063669723,2.35070356,135.57,135.55,3.26]
[1764063669923,3.04070356,135.56,135.54,3.26]
[1764063670152,16.59318714,135.54,135.47,50.0]
[1764063670337,2.35070356,135.52,135.48,53.26]
[1764063670518,2.35070356,135.52,135.48,55.61070356]
[1764063671555,3.04070356,135.53,135.49,7.38061849]
[1764063671971,2.35070356,135.53,135.49,28.18286828]
[1764063672237,2.35070356,135.55,135.5,52.35070356]
[1764063672417,2.35070356,135.55,135.51,3.26]
[1764063673021,2.35070356,135.54,135.51,3.26]
[1764063673646,2.35070356,135.54,135.52,7.37898465]
[1764063674144,3.04070356,135.55,135.52,7.37898465]
[1764063674822,2.35070356,135.54,135.52,7.37898465]
[1764063676253,2.35070356,135.54,135.53,3.26]
[1764063676434,3.04070356,135.54,135.51,7.37952918]
[1764063676636,3.04070356,135.54,135.52,3.26]
[1764063677753,2.35070356,135.54,135.52,3.26]
[1764063677965,3.04070356,135.54,135.52,3.26]
[1764063678537,0.69,135.54,135.52,10.63864989]
[1764063679438,2.35070356,135.55,135.52,10.63864989]
[1764063679645,3.04070356,135.55,135.52,10.63864989]
[1764063680158,3.04070356,135.54,135.52,10.63864989]
[1764063680358,0.69,135.54,135.52,10.63864989]
[1764063680540,2.35070356,135.55,135.52,10.63864989]
[1764063680745,0.69,135.56,135.52,12.98935345]
[1764063682437,2.35070356,135.57,135.52,31.43681507]
[1764063682650,4.35253525,135.56,135.52,32.74864676]
[1764063683234,4.35253525,135.56,135.52,29.08611151]
[1764063683569,3.66253525,135.56,135.52,29.08611151]
[1764063683866,4.35253525,135.55,135.53,3.26]
[1764063684038,3.66253525,135.54,135.53,3.26]
[1764063684243,4.35253525,135.54,135.53,3.26]
[1764063684652,3.66253525,135.55,135.53,3.26]
[1764063685162,4.35253525,135.55,135.53,10.63837437]
[1764063685351,4.35253525,135.56,135.53,10.63837437]
[1764063686369,0.69,135.56,135.53,10.63837437]
[1764063687652,4.35253525,135.56,135.53,10.63837437]
[1764063687972,4.35253525,135.56,135.53,7.37837437]
[1764063688156,0.69,135.55,135.54,3.26]
[1764063689163,0.69,135.55,135.52,25.82582384]
[1764063689363,0.69,135.55,135.53,3.26]
[1764063690571,3.66253525,135.56,135.53,3.26]
[1764063690864,0.69,135.56,135.53,3.26]
[1764063691276,0.69,135.56,135.54,7.37789582]
[1764063691948,4.35253525,135.56,135.54,7.37789582]
[1764063692354,4.35253525,135.56,135.53,10.63820425]
[1764063692564,3.66253525,135.54,135.5,18.4494045]
[1764063692978,3.66253525,135.54,135.51,3.26]
[1764063693270,0.69,135.53,135.51,3.26]
[1764063693454,0.69,135.53,135.51,10.63952918]
[1764063694859,0.69,135.53,135.52,3.26]
[1764063695977,0.69,135.53,135.52,10.63898465]
[1764063697387,3.66253525,135.54,135.52,10.63898465]
[1764063697692,4.63685839,135.56,135.52,10.63898465]
[1764063697979,0.69,135.55,135.52,14.3015199]
[1764063698154,0.69,135.55,135.52,10.63898465]
[1764063698958,0.69,135.56,135.52,32.74898152]
[1764063699287,27.34737608,135.58,135.52,82.74898152]
[1764063699579,0.69,135.56,135.52,82.74898152]
[1764063700158,3.66253525,135.57,135.52,82.74898152]
[1764063700455,0.69,135.57,135.53,3.66253525]
[1764063700783,0.69,135.57,135.54,3.26]
[1764063701090,0.69,135.57,135.54,10.63740807]
[1764063702881,7.75986662,135.59,135.55,3.66253525]
[1764063702882,4.45253525,135.59,135.55,3.66253525]
[1764063703073,0.69,135.58,135.56,10.63680731]
[1764063703461,0.1,135.59,135.56,10.63680731]
[1764063703668,0.1,135.59,135.57,3.66253525]
[1764063703973,0.1,135.59,135.58,3.26]
[1764063704960,0.1,135.59,135.58,10.63571913]
[1764063705282,0.79,135.59,135.58,10.63571913]
[1764063705850,0.1,135.59,135.58,10.63571913]
[1764063708079,0.1,135.59,135.58,14.29825438]
[1764063708281,0.1,135.59,135.58,64.29825438]
[1764063711390,1e-08,135.59,135.58,73.1081993]
[1764063711962,1e-08,135.59,135.58,93.07959855]
[1764063712303,1e-08,135.61,135.6,75.11880892]
[1764063712469,0.79,135.67,135.63,50.0]
[1764063712470,0.1,135.67,135.63,50.0]
[1764063712796,0.1,135.67,135.66,3.66253525]
[1764063712977,0.1,135.67,135.66,14.29390485]
[1764063713793,0.1,135.67,135.66,10.6313696]
[1764063714804,0.1,135.67,135.66,14.29390485]
[1764063718191,0.1,135.67,135.66,30.60276885]
[1764063719772,0.1,135.67,135.66,26.9402336]
[1764063719975,0.1,135.67,135.66,30.60276885]
[1764063722522,0.1,135.67,135.66,26.9402336]
[1764063722699,0.1,135.67,135.66,30.60276885]
[1764063723014,0.1,135.67,135.66,26.9402336]
[1764063723223,0.1,135.67,135.66,30.60276885]
[1764063726099,0.1,135.67,135.66,14.29390485]
[1764063728324,0.1,135.67,135.66,11.03390485]
[1764063728526,0.1,135.67,135.66,14.29390485]
[1764063729327,0.1,135.67,135.66,7.3713696]
[1764063729546,0.05334744,135.67,135.66,14.29390485]
[1764063729844,0.1,135.69,135.68,50.0]
[1764063730004,0.1,135.69,135.68,56.92253525]
[1764063730205,0.1,135.69,135.68,64.29281826]
[1764063730724,1e-08,135.72,135.7,50.0]
[1764063731024,1e-08,135.72,135.71,6.92253525]
[1764063732236,1e-08,135.72,135.71,14.29118899]
[1764063732616,1e-08,135.73,135.71,18.23804738]
[1764063732820,1e-08,135.73,135.72,82.87036413]
[1764063733014,0.67,135.8,135.76,50.0]
[1764063733238,0.1,135.81,135.73,50.0]
[1764063733239,0.1,135.81,135.79,3.66253525]
[1764063733418,0.1,135.81,135.78,66.308864]
[1764063733419,0.1,135.81,135.8,56.92253525]
[1764063733739,0.1,135.81,135.8,60.5850705]
[1764063734233,2.42200377,135.97,135.81,32.48203695]
[1764063734432,0.21324235,136.01,135.81,3.26]
[1764063734433,0.77,135.82,135.81,3.26]
[1764063734638,0.77,135.82,135.79,16.308864]
[1764063734836,0.77,135.82,135.8,3.26]
[1764063735216,0.77,135.82,135.78,57.36477448]
[1764063735419,19.97139925,135.8,135.74,50.0]
[1764063735617,3.66253525,135.78,135.72,68.41980053]
[1764063735924,3.66253525,135.78,135.74,53.66253525]
[1764063736136,0.67,135.77,135.74,53.66253525]
[1764063736519,0.67,135.77,135.74,17.05249456]
[1764063736839,9.68555748,135.76,135.75,3.26]
[1764063737210,10.35555748,135.76,135.75,3.26]
[1764063738633,0.67,135.76,135.75,3.26]
[1764063741040,9.68555748,135.79,135.75,12.94555748]
[1764063741244,0.67,135.77,135.75,12.94555748]
[1764063741941,0.67,135.77,135.75,10.62635788]
[1764063742238,0.67,135.77,135.75,20.31191536]
[1764063742652,18.79156076,135.82,135.76,5.56209421]
[1764063742653,0.1,135.82,135.76,5.56209421]
[1764063742949,6.23209421,135.81,135.75,75.78256414]
[1764063743161,5.56209421,135.8,135.76,3.26]
[1764063743337,6.23209421,135.8,135.76,3.26]
[1764063743542,0.67,135.79,135.77,5.56209421]
[1764063743743,0.67,135.79,135.78,3.26]
[1764063744130,0.67,135.79,135.78,10.62485491]
[1764063744946,0.77,135.82,135.78,66.18694912]
[1764063745151,0.67,135.81,135.8,5.56209421]
[1764063745460,0.67,135.81,135.8,3.26]
[1764063746325,0.67,135.81,135.8,10.62377025]
[1764063746746,0.67,135.81,135.8,3.26]
[1764063747230,0.67,135.81,135.8,10.62377025]
[1764063747426,0.1,135.82,135.8,16.18586446]
[1764063747646,0.77,135.82,135.8,10.62377025]
[1764063747846,0.77,135.82,135.8,16.18586446]
[1764063748252,0.1,135.82,135.8,16.18586446]
[1764063748436,0.1,135.82,135.81,8.82209421]
[1764063750247,0.1,135.82,135.81,16.18532224]
[1764063750645,0.1,135.82,135.81,12.92532224]
[1764063750856,0.77,135.82,135.81,10.62322803]
[1764063751059,0.1,135.82,135.81,60.62322803]
[1764063751366,0.1,135.82,135.81,66.18532224]
[1764063754159,1e-08,135.82,135.81,66.18532224]
[1764063754353,0.14216157,135.91,135.83,50.0]
[1764063754354,5.56209421,135.9,135.83,50.0]
[1764063754581,7.3582396,135.91,135.86,5.56209421]
[1764063754582,0.67,135.88,135.86,5.56209421]
[1764063754738,0.67,135.88,135.87,1.26]
[1764063754933,0.67,135.88,135.87,3.26]
[1764063755939,6.23209421,135.88,135.86,3.26]
[1764063756155,12.92209384,135.87,135.79,75.7686472]
[1764063756351,16.978864,135.87,135.84,5.56209421]
[1764063756533,0.67,135.86,135.85,3.26]
[1764063756928,0.67,135.86,135.81,50.0]
[1764063757144,6.23209421,135.86,135.81,50.0]
[1764063757341,6.23209421,135.86,135.82,8.82209421]
[1764063757541,0.67,135.85,135.82,8.82209421]
[1764063757740,6.23209421,135.85,135.8,7.36377025]
[1764063757941,22.54095821,135.85,135.81,8.82209421]
[1764063758144,0.67,135.84,135.81,16.18499936]
[1764063758560,0.67,135.84,135.82,5.56209421]
[1764063758844,0.67,135.84,135.81,16.18499936]
[1764063759262,0.67,135.84,135.82,3.26]
[1764063761879,5.56209421,135.83,135.81,3.26]
[1764063762261,0.67,135.82,135.81,3.26]
[1764063763063,0.67,135.82,135.79,5.56209421]
[1764063763064,0.67,135.82,135.8,7.36373708]
[1764063763262,0.67,135.82,135.81,3.26]
[1764063764751,0.67,135.82,135.79,7.36409145]
[1764063764752,6.23209421,135.82,135.79,7.36409145]
[1764063764956,6.23209421,135.82,135.8,3.26]
[1764063765183,0.67,135.81,135.8,3.26]
[1764063765965,0.67,135.81,135.78,25.77641358]
[1764063766163,0.67,135.81,135.79,3.26]
[1764063767883,0.67,135.81,135.79,10.62391151]
[1764063768885,0.67,135.81,135.79,12.9590071]
[1764063769770,2.33509559,135.83,135.8,2.33509559]
[1764063769771,0.67,135.83,135.8,2.33509559]
[1764063770079,0.67,135.82,135.81,7.36322803]
[1764063770279,0.67,135.84,135.81,75.77129812]
[1764063770484,0.67,135.84,135.82,5.59509559]
[1764063770662,0.67,135.83,135.82,5.59509559]
[1764063771563,2.33509559,135.86,135.82,5.59509559]
[1764063771771,0.67,135.85,135.83,2.33509559]
[1764063771972,0.67,135.85,135.84,7.36160188]
[1764063772479,0.67,135.88,135.84,10.62160188]
[1764063772682,0.67,135.87,135.84,10.62160188]
[1764063773102,0.67,135.87,135.84,29.02560659]
[1764063773265,3.02509559,135.89,135.84,29.02560659]
[1764063773472,3.02509559,135.9,135.86,2.33509559]
[1764063773774,3.02509559,135.9,135.87,3.26]
[1764063773972,0.69,135.89,135.87,10.61962193]
[1764063776078,3.02509559,135.89,135.87,10.61962193]
[1764063776278,3.02509559,135.89,135.87,3.26]
[1764063776589,0.69,135.88,135.87,3.26]
[1764063777165,0.69,135.88,135.87,10.61981338]
[1764063779375,0.69,135.88,135.85,68.40185214]
[1764063779376,0.69,135.88,135.85,57.36083853]
[1764063779599,3.02509559,135.88,135.86,3.26]
[1764063779780,0.69,135.88,135.86,3.26]
[1764063780072,0.69,135.88,135.86,5.59509559]
[1764063780390,0.69,135.88,135.87,7.35997644]
[1764063780891,3.02509559,135.88,135.87,3.26]
[1764063781498,0.69,135.88,135.87,3.26]
[1764063782987,0.69,135.88,135.87,10.61997644]
[1764063783967,0.69,135.89,135.87,12.95507203]
[1764063784167,0.69,135.89,135.87,10.61997644]
[1764063784367,0.69,135.89,135.87,12.95507203]
[1764063785382,2.33509559,135.88,135.83,50.0]
[1764063785590,2.33509559,135.88,135.84,3.26]
[1764063785769,0.69,135.87,135.84,12.95654671]
[1764063786992,0.69,135.89,135.86,2.33509559]
[1764063787184,0.69,135.89,135.87,5.59509559]
[1764063787490,0.69,135.89,135.87,55.59509559]
[1764063788074,0.69,135.89,135.88,2.33509559]
[1764063788369,2.61941873,135.92,135.88,9.69453038]
[1764063788572,0.69,135.9,135.89,3.26]
[1764063788890,0.69,135.92,135.89,5.59509559]
[1764063789096,0.69,135.92,135.89,55.59509559]
[1764063789884,2.33509559,135.9,135.83,50.0]
[1764063790195,0.14216157,135.9,135.84,10.62113789]
[1764063790396,2.33509559,135.88,135.84,7.36113789]
[1764063790592,2.33509559,135.88,135.85,3.26]
[1764063790593,2.47725716,135.88,135.85,3.26]
[1764063790772,0.69,135.87,135.85,3.26]
[1764063790974,0.69,135.87,135.84,9.69623348]
[1764063790975,2.33509559,135.86,135.81,18.40766539]
[1764063791200,2.33509559,135.84,135.82,3.26]
[1764063791699,3.02509559,135.83,135.8,7.36377025]
[1764063791891,3.02509559,135.83,135.79,70.74523798]
[1764063791892,8.05225498,135.83,135.79,7.36412729]
[1764063792204,3.02509559,135.82,135.81,3.26]
[1764063792497,0.69,135.82,135.81,3.26]
[1764063794606,6.2487399,135.82,135.81,3.26]
[1764063794798,0.69,135.82,135.81,3.26]
[1764063795602,5.5587399,135.85,135.81,10.62322803]
[1764063795789,5.5587399,135.85,135.81,16.18196793]
[1764063795992,0.69,135.84,135.81,16.18196793]
[1764063796385,0.69,135.84,135.81,10.62322803]
[1764063796581,7.36076891,135.86,135.81,10.62322803]
[1764063796582,21.8676039,135.87,135.82,5.5587399]
[1764063796895,0.69,135.86,135.83,5.5587399]
[1764063797094,0.69,135.86,135.84,3.26]
[1764063797879,6.2487399,135.86,135.81,25.77129812]
[1764063798075,6.2487399,135.86,135.82,3.26]
[1764063798076,5.5587399,135.84,135.82,3.26]
[1764063798612,0.69,135.83,135.81,7.36322803]
[1764063798819,0.69,135.83,135.82,3.26]
[1764063799832,12.91984146,135.85,135.82,3.26]
[1764063799989,0.69,135.83,135.82,3.26]
[1764063800192,16.308864,135.85,135.82,10.62256953]
[1764063800514,0.69,135.84,135.82,16.18130943]
[1764063801086,0.69,135.84,135.82,10.62256953]
[1764063801392,21.8676039,135.87,135.83,5.5587399]
[1764063801699,0.69,135.86,135.84,3.26]
[1764063801900,0.69,135.86,135.85,7.36105999]
[1764063802287,0.69,135.87,135.85,7.36105999]
[1764063802490,0.69,135.87,135.86,3.26]
[1764063803182,6.2487399,135.87,135.84,7.3614114]
[1764063803403,5.98522461,135.86,135.83,7.36192738]
[1764063803597,6.65522461,135.86,135.84,3.26]
[1764063803797,0.67,135.85,135.84,3.26]
[1764063804711,0.67,135.85,135.84,10.62160188]
[1764063805307,0.42648471,135.88,135.84,10.62160188]
[1764063805510,10.34473133,135.87,135.84,10.62160188]
[1764063805705,0.67,135.87,135.84,3.26]
[1764063805909,0.67,135.86,135.84,3.26]
[1764063806213,9.67473133,135.85,135.83,3.26]
[1764063806597,0.67,135.84,135.83,3.26]
[1764063807419,10.34473133,135.84,135.78,68.41154364]
[1764063807608,0.67,135.83,135.79,20.29904387]
[1764063808122,0.67,135.83,135.8,59.67473133]
[1764063808321,0.67,135.83,135.8,50.0]